[Event "40th IND-chT Open 2020"]
[Site "Ahmedabad"]
[Date "2020.02.12"]
[Round "8.4"]
[White "Sengupta, Deep"]
[Black "Aansh Gupta"]
[Result "1-0"]
[ECO "A47"]
[WhiteElo "2534"]
[BlackElo "1900"]
[Annotator "RC"]
[PlyCount "73"]
[EventDate "2020.02.05"]
[EventCountry "IND"]
[SourceTitle "playchess.com"]
[Source "ChessBase"]
[SourceQuality "1"]
[TimeControl "5400+30"]

1. d4 {[%emt 0:00:00]} Nf6 {[%emt 0:00:46]} 2. Bf4 {[%emt 0:00:45]} b6 {[%emt 0:02:06]} 3. e3 {[%emt 0:00:22]} Bb7 {[%emt 0:00:08]} 4. Nf3 {[%emt 0:00:08]} e6 {[%emt 0:00:27]} 5. Bd3 {[%emt 0:00:36]} Be7 {[%emt 0:00:54]} 6. h3 {[%emt 0:00:09]} Nd5 {[%emt 0:22:33]} 7. Bh2 {[%emt 0:02:35]} Nb4 {[%emt 0:00:36]} 8. Be2 {[%emt 0:00:36]} Be4 {[%emt 0:02:50]} 9. Na3 {[%emt 0:00:08]} f5 {[%emt 0:00:33]} 10. O-O {[%emt 0:02:25]} Nd5 {[%emt 0:02:25]} 11. Nc4 {[%emt 0:00:40]} O-O {[%emt 0:01:15]} 12. Nfd2 {[%emt 0:01:01]} b5 {[%emt 0:16:48]} 13. Na5 {[%emt 0:17:30]} c5 {[%emt 0:10:02]} 14. Nxe4 {[%emt 0:01:32]} fxe4 {[%emt 0:04:05]} 15. Nb3 {[%emt 0:02:10]} Qb6 {[%emt 0:04:37]} 16. dxc5 {[%emt 0:13:41]} Bxc5 {[%emt 0:00:22]} 17. Nxc5 {[%emt 0:00:03]} Qxc5 {[%emt 0:00:05]} 18. Rc1 {[%emt 0:00:09]} b4 {[%emt 0:06:52]} 19. Qd2 {[%emt 0:00:31]} Rc8 {[%emt 0:06:04]} 20. c4 {[%emt 0:01:52]} bxc3 {[%emt 0:01:00]} 21. bxc3 {[%emt 0:00:02]} Nxc3 {[%emt 0:09:27]} 22. Bg4 {[%emt 0:20:41]} Rc6 {[%emt 0:06:04]} 23. Bxb8 {[%emt 0:07:48]} Rxb8 {[%emt 0:00:04]} 24. Qxd7 {[%emt 0:00:05]} Qd5 {[%emt 0:00:16]} 25. Qe7 {[%emt 0:14:43]} h5 {[%emt 0:01:36]} 26. Rxc3 {[%emt 0:00:28]} hxg4 {[%emt 0:00:08]} 27. Rxc6 {[%emt 0:00:14]} Qxc6 {[%emt 0:00:04]} 28. hxg4 {[%emt 0:00:03]} Rb7 {[%emt 0:01:19]} 29. Qd8+ {[%emt 0:00:08]} Kh7 {[%emt 0:00:32]} 30. Rd1 {[%emt 0:00:44]} Rf7 {[%emt 0:00:31]} 31. Qh4+ {[%emt 0:00:44]} Kg8 {[%emt 0:00:11]} 32. g5 {[%emt 0:00:13]} Rd7 {[%emt 0:00:48]} 33. Rxd7 {[%emt 0:01:19]} Qxd7 {[%emt 0:00:19]} 34. g6 {[%emt 0:00:07]} Qd1+ {[%emt 0:00:41]} 35. Kh2 {[%emt 0:00:01]} Qd6+ {[%emt 0:00:20]} 36. g3 {[%emt 0:00:09]} Qd2 {[%emt 0:00:41]} 37. Qh7+ {[%emt 0:00:09]} 1-0

[Event "40th IND-chT Open 2020"]
[Site "Ahmedabad"]
[Date "2020.02.12"]
[Round "8.7"]
[White "Visakh N R"]
[Black "Deepan Chakkravarthy J."]
[Result "0-1"]
[ECO "D51"]
[WhiteElo "2518"]
[BlackElo "2545"]
[Annotator "ChessBase"]
[PlyCount "128"]
[EventDate "2020.02.05"]
[EventCountry "IND"]
[SourceTitle "playchess.com"]
[Source "ChessBase"]
[SourceQuality "1"]
[TimeControl "5400+30"]

1. d4 {[%emt 0:00:00]} d5 {[%emt 0:00:00]} 2. c4 {[%emt 0:00:00]} e6 {[%emt 0:00:00]} 3. Nf3 {[%emt 0:02:56]} Nf6 {[%emt 0:00:00]} 4. Nc3 {[%emt 0:00:04]} Nbd7 {[%emt 0:00:00]} 5. Bg5 {[%emt 0:04:53]} h6 {[%emt 0:00:09]} 6. Bh4 {[%emt 0:00:05]} Bb4 {[%emt 0:02:32]} 7. cxd5 {[%emt 0:02:07]} exd5 {[%emt 0:00:38]} 8. e3 {[%emt 0:03:59]} g5 {[%emt 0:04:22]} 9. Bg3 {[%emt 0:00:09]} Ne4 {[%emt 0:00:06]} 10. Nd2 {[%emt 0:00:03]} Nxg3 {[%emt 0:01:44]} 11. hxg3 {[%emt 0:00:59]} c6 {[%emt 0:00:23]} 12. Qc2 {[%emt 0:04:17]} Nf6 {[%emt 0:02:58]} 13. a3 {[%emt 0:03:53]} Be7 {[%emt 0:07:47]} 14. Nf3 {[%emt 0:04:52]} Ng4 {[%emt 0:00:55]} 15. Bd3 {[%emt 0:00:47]} Be6 {[%emt 0:00:31]} 16. O-O-O {[%emt 0:01:01]} Qc7 {[%emt 0:25:49]} 17. e4 {[%emt 0:04:56]} dxe4 {[%emt 0:01:23]} 18. Bxe4 {[%emt 0:00:17]} O-O-O {[%emt 0:00:44]} 19. Rhe1 {[%emt 0:03:30]} Kb8 {[%emt 0:13:18]} 20. Rd2 {[%emt 0:15:48]} Qa5 {[%emt 0:04:13]} 21. Qa4 {[%emt 0:08:25]} Qxa4 {[%emt 0:01:07]} 22. Nxa4 {[%emt 0:00:03]} Bd6 {[%emt 0:00:27]} 23. Nc3 {[%emt 0:02:50]} Nxf2 {[%emt 0:01:17]} 24. Rxf2 {[%emt 0:01:41]} Bxg3 {[%emt 0:00:07]} 25. Ref1 {[%emt 0:05:35]} g4 {[%emt 0:11:07]} 26. Ne5 {[%emt 0:00:51]} Bxf2 {[%emt 0:01:00]} 27. Rxf2 {[%emt 0:00:02]} Rxd4 {[%emt 0:01:34]} 28. Bf5 {[%emt 0:01:10]} h5 {[%emt 0:01:07]} 29. Bxe6 {[%emt 0:02:19]} fxe6 {[%emt 0:00:06]} 30. Ne2 {[%emt 0:01:36]} Rd5 {[%emt 0:01:53]} 31. Ng6 {[%emt 0:02:16]} Rhd8 {[%emt 0:06:47]} 32. Nc3 {[%emt 0:02:26]} Rf5 {[%emt 0:01:17]} 33. Rxf5 {[%emt 0:07:00]} exf5 {[%emt 0:00:02]} 34. Ne2 {[%emt 0:00:01]} Kc7 {[%emt 0:01:35]} 35. Nef4 {[%emt 0:01:06]} Kd6 {[%emt 0:00:56]} 36. Kd2 {[%emt 0:01:19]} h4 {[%emt 0:00:24]} 37. Nxh4 {[%emt 0:05:21]} Ke5+ {[%emt 0:00:04]} 38. Ke3 {[%emt 0:00:06]} Rd1 {[%emt 0:00:05]} 39. g3 {[%emt 0:01:14]} Re1+ {[%emt 0:00:22]} 40. Ne2 {[%emt 0:00:42]} Rb1 {[%emt 0:02:38]} 41. Nf4 {[%emt 0:00:01]} b6 {[%emt 0:03:49]} 42. Nd3+ {[%emt 0:01:49]} Kf6 {[%emt 0:00:06]} 43. Ng2 {[%emt 0:01:20]} c5 {[%emt 0:00:10]} 44. Ngf4 {[%emt 0:00:07]} c4 {[%emt 0:00:44]} 45. Nd5+ {[%emt 0:00:01]} Kg5 {[%emt 0:00:07]} 46. Nc3 {[%emt 0:00:02]} Rf1 {[%emt 0:03:01]} 47. Ne5 {[%emt 0:01:00]} Re1+ {[%emt 0:01:59]} 48. Ne2 {[%emt 0:00:04]} b5 {[%emt 0:00:16]} 49. a4 {[%emt 0:00:01]} c3 {[%emt 0:01:27]} 50. bxc3 {[%emt 0:00:31]} bxa4 {[%emt 0:00:01]} 51. Nd3 {[%emt 0:01:17]} Rb1 {[%emt 0:00:11]} 52. c4 {[%emt 0:01:21]} a3 {[%emt 0:00:14]} 53. Nc3 {[%emt 0:00:01]} Rg1 {[%emt 0:00:58]} 54. Kf2 {[%emt 0:05:17]} Rh1 {[%emt 0:00:04]} 55. Kg2 {[%emt 0:00:20]} Rd1 {[%emt 0:00:29]} 56. Nb4 {[%emt 0:00:56]} Rd4 {[%emt 0:00:27]} 57. Nba2 {[%emt 0:01:33]} Rxc4 {[%emt 0:00:05]} 58. Kf1 {[%emt 0:00:02]} f4 {[%emt 0:00:31]} 59. gxf4+ {[%emt 0:00:01]} Rxf4+ {[%emt 0:00:06]} 60. Kg2 {[%emt 0:01:06]} Kh4 {[%emt 0:00:26]} 61. Ne2 {[%emt 0:00:43]} Rc4 {[%emt 0:00:10]} 62. Nac3 {[%emt 0:00:07]} Rb4 {[%emt 0:00:19]} 63. Nc1 {[%emt 0:00:57]} Rb2+ {[%emt 0:00:09]} 64. Kg1 {[%emt 0:00:05]} Rc2 {[%emt 0:00:13]} 0-1

[Event "40th IND-chT Open 2020"]
[Site "Ahmedabad"]
[Date "2020.02.12"]
[Round "8.8"]
[White "Swapnil, S. Dhopade"]
[Black "Sai Agni Jeevitesh, J."]
[Result "1-0"]
[ECO "E06"]
[WhiteElo "2495"]
[BlackElo "2310"]
[Annotator "RC"]
[PlyCount "134"]
[EventDate "2020.02.05"]
[EventCountry "IND"]
[SourceTitle "playchess.com"]
[Source "ChessBase"]
[SourceQuality "1"]
[TimeControl "5400+30"]

1. Nf3 {[%emt 0:00:00]} d5 {[%emt 0:00:04]} 2. g3 {[%emt 0:00:00]} Nf6 {[%emt 0:00:13]} 3. Bg2 {[%emt 0:00:01]} e6 {[%emt 0:01:09]} 4. O-O {[%emt 0:00:05]} Be7 {[%emt 0:00:02]} 5. c4 {[%emt 0:00:06]} O-O {[%emt 0:00:10]} 6. d4 {[%emt 0:00:06]} c6 {[%emt 0:00:26]} 7. Nc3 {[%emt 0:00:05]} dxc4 {[%emt 0:09:08]} 8. Ne5 {[%emt 0:00:34]} Nbd7 {[%emt 0:04:52]} 9. Nxc4 {[%emt 0:00:08]} Nb6 {[%emt 0:07:02]} 10. Ne5 {[%emt 0:00:59]} Nfd5 {[%emt 0:05:04]} 11. e4 {[%emt 0:17:20]} Nxc3 {[%emt 0:02:02]} 12. bxc3 {[%emt 0:00:02]} c5 {[%emt 0:06:42]} 13. a4 {[%emt 0:02:45]} cxd4 {[%emt 0:04:27]} 14. cxd4 {[%emt 0:00:09]} f6 {[%emt 0:01:29]} 15. Nf3 {[%emt 0:14:22]} f5 {[%emt 0:09:34]} 16. exf5 {[%emt 0:02:44]} Rxf5 {[%emt 0:04:57]} 17. Re1 {[%emt 0:03:35]} Qf8 {[%emt 0:07:39]} 18. Ra2 {[%emt 0:00:28]} Bb4 {[%emt 0:05:36]} 19. Bd2 {[%emt 0:04:03]} Bd7 {[%emt 0:04:50]} 20. Qb3 {[%emt 0:05:18]} Bxd2 {[%emt 0:03:58]} 21. Rxd2 {[%emt 0:00:07]} Bxa4 {[%emt 0:05:09]} 22. Qxe6+ {[%emt 0:00:26]} Qf7 {[%emt 0:01:22]} 23. Qxf7+ {[%emt 0:04:43]} Rxf7 {[%emt 0:00:45]} 24. Ne5 {[%emt 0:00:07]} Re7 {[%emt 0:00:22]} 25. f4 {[%emt 0:00:18]} Rd8 {[%emt 0:01:31]} 26. Ra1 {[%emt 0:17:51]} a6 {[%emt 0:04:25]} 27. d5 {[%emt 0:13:27]} Rd6 {[%emt 0:00:49]} 28. Rc1 {[%emt 0:00:22]} g6 {[%emt 0:04:05]} 29. Kf2 {[%emt 0:00:53]} Kg7 {[%emt 0:00:46]} 30. h4 {[%emt 0:03:47]} Bb5 {[%emt 0:01:59]} 31. g4 {[%emt 0:00:21]} Be8 {[%emt 0:03:51]} 32. Rc5 {[%emt 0:03:38]} Kf8 {[%emt 0:00:41]} 33. Kg3 {[%emt 0:01:47]} Nd7 {[%emt 0:00:42]} 34. Rc7 {[%emt 0:00:15]} Nf6 {[%emt 0:00:28]} 35. Rxe7 {[%emt 0:04:45]} Kxe7 {[%emt 0:00:01]} 36. Nc4 {[%emt 0:00:06]} Rd8 {[%emt 0:01:08]} 37. d6+ {[%emt 0:00:04]} Kf8 {[%emt 0:01:02]} 38. Bxb7 {[%emt 0:00:38]} Bb5 {[%emt 0:00:00]} 39. Ne5 {[%emt 0:02:25]} Ne8 {[%emt 0:00:08]} 40. d7 {[%emt 0:00:10]} Nf6 {[%emt 0:00:06]} 41. g5 {[%emt 0:00:52]} Nxd7 {[%emt 0:00:49]} 42. Bc6 {[%emt 0:00:33]} Ke7 {[%emt 0:00:54]} 43. Bxb5 {[%emt 0:00:19]} Nxe5 {[%emt 0:00:05]} 44. Re2 {[%emt 0:00:42]} axb5 {[%emt 0:00:13]} 45. Rxe5+ {[%emt 0:00:01]} Kf7 {[%emt 0:01:02]} 46. Rxb5 {[%emt 0:00:01]} Rd7 {[%emt 0:00:01]} 47. Kg4 {[%emt 0:00:08]} Kg7 {[%emt 0:00:56]} 48. h5 {[%emt 0:00:03]} Ra7 {[%emt 0:00:42]} 49. Rb8 {[%emt 0:00:12]} Rc7 {[%emt 0:00:30]} 50. h6+ {[%emt 0:00:20]} Kf7 {[%emt 0:00:01]} 51. Kf3 {[%emt 0:01:01]} Re7 {[%emt 0:00:25]} 52. Rh8 {[%emt 0:00:12]} Ke6 {[%emt 0:00:05]} 53. Rg8 {[%emt 0:00:32]} Ra7 {[%emt 0:00:41]} 54. Rf8 {[%emt 0:00:57]} Ra3+ {[%emt 0:01:08]} 55. Kg4 {[%emt 0:01:08]} Rb3 {[%emt 0:00:37]} 56. Rf6+ {[%emt 0:00:20]} Ke7 {[%emt 0:00:17]} 57. Ra6 {[%emt 0:00:20]} Rb7 {[%emt 0:00:01]} 58. f5 {[%emt 0:01:43]} gxf5+ {[%emt 0:01:14]} 59. Kxf5 {[%emt 0:00:11]} Kf7 {[%emt 0:01:05]} 60. Ra8 {[%emt 0:00:10]} Rb5+ {[%emt 0:00:00]} 61. Kg4 {[%emt 0:00:01]} Rb1 {[%emt 0:00:28]} 62. Rh8 {[%emt 0:00:21]} Rg1+ {[%emt 0:00:20]} 63. Kf5 {[%emt 0:00:13]} Rf1+ {[%emt 0:00:08]} 64. Ke4 {[%emt 0:00:24]} Re1+ {[%emt 0:00:59]} 65. Kf3 {[%emt 0:00:23]} Kg6 {[%emt 0:00:17]} 66. Rg8+ {[%emt 0:00:04]} Kf5 {[%emt 0:00:16]} 67. g6 {[%emt 0:00:38]} hxg6 {[%emt 0:01:32]} 1-0

[Event "40th IND-chT Open 2020"]
[Site "Ahmedabad"]
[Date "2020.02.12"]
[Round "8.10"]
[White "Harsha Bharathakoti"]
[Black "Das, Sayantan"]
[Result "1/2-1/2"]
[ECO "A14"]
[WhiteElo "2495"]
[BlackElo "2426"]
[Annotator "RC"]
[PlyCount "69"]
[EventDate "2020.02.05"]
[EventCountry "IND"]
[SourceTitle "playchess.com"]
[Source "ChessBase"]
[SourceQuality "1"]
[TimeControl "5400+30"]

1. c4 {[%emt 0:02:03]} e6 {[%emt 0:00:00]} 2. Nf3 {[%emt 0:00:45]} d5 {[%emt 0:00:22]} 3. g3 {[%emt 0:00:13]} Nf6 {[%emt 0:00:15]} 4. b3 {[%emt 0:01:36]} Be7 {[%emt 0:02:03]} 5. Bg2 {[%emt 0:00:31]} O-O {[%emt 0:00:34]} 6. O-O {[%emt 0:01:04]} a5 {[%emt 0:01:35]} 7. Nc3 {[%emt 0:00:24]} c6 {[%emt 0:00:36]} 8. d4 {[%emt 0:01:43]} Nbd7 {[%emt 0:01:24]} 9. Qd3 {[%emt 0:17:51]} b6 {[%emt 0:02:04]} 10. e4 {[%emt 0:00:09]} Ba6 {[%emt 0:03:13]} 11. e5 {[%emt 0:05:26]} Ne8 {[%emt 0:01:09]} 12. Rd1 {[%emt 0:01:15]} b5 {[%emt 0:10:11]} 13. cxb5 {[%emt 0:06:07]} cxb5 {[%emt 0:00:06]} 14. Nxb5 {[%emt 0:07:22]} Nc7 {[%emt 0:20:13]} 15. a4 {[%emt 0:00:08]} Rb8 {[%emt 0:00:33]} 16. Bd2 {[%emt 0:06:27]} Nxb5 {[%emt 0:00:48]} 17. axb5 {[%emt 0:00:05]} Bxb5 {[%emt 0:11:04]} 18. Bxa5 {[%emt 0:09:13]} Qxa5 {[%emt 0:02:09]} 19. Rxa5 {[%emt 0:00:06]} Bxd3 {[%emt 0:00:03]} 20. Rxd3 {[%emt 0:00:05]} Rb7 {[%emt 0:00:12]} 21. Bf1 {[%emt 0:06:01]} Rfb8 {[%emt 0:04:33]} 22. Be2 {[%emt 0:00:55]} Rc8 {[%emt 0:07:17]} 23. Ra1 {[%emt 0:13:04]} Nb8 {[%emt 0:02:43]} 24. Bd1 {[%emt 0:01:12]} g6 {[%emt 0:01:05]} 25. h4 {[%emt 0:01:05]} Kg7 {[%emt 0:03:32]} 26. Kf1 {[%emt 0:02:04]} Bb4 {[%emt 0:02:08]} 27. Re3 {[%emt 0:04:00]} Rbc7 {[%emt 0:02:22]} 28. Re2 {[%emt 0:00:34]} Rc1 {[%emt 0:12:58]} 29. Rea2 {[%emt 0:00:06]} R8c3 {[%emt 0:00:41]} 30. Rxc1 {[%emt 0:02:05]} Rxc1 {[%emt 0:00:03]} 31. Ke2 {[%emt 0:00:07]} Nc6 {[%emt 0:00:52]} 32. Rc2 {[%emt 0:04:30]} Rxc2+ {[%emt 0:00:09]} 33. Bxc2 {[%emt 0:00:04]} Bc3 {[%emt 0:01:21]} 34. Ke3 {[%emt 0:00:03]} Bb2 {[%emt 0:01:35]} 35. Bd3 {[%emt 0:02:14]} 1/2-1/2

[Event "40th IND-chT Open 2020"]
[Site "Ahmedabad"]
[Date "2020.02.12"]
[Round "8.11"]
[White "Thejkumar, M. S."]
[Black "Matta, Vinay Kumar"]
[Result "1/2-1/2"]
[ECO "E97"]
[WhiteElo "2438"]
[BlackElo "2319"]
[Annotator "ChessBase"]
[PlyCount "91"]
[EventDate "2020.02.05"]
[EventCountry "IND"]
[SourceTitle "playchess.com"]
[Source "ChessBase"]
[SourceQuality "1"]
[TimeControl "5400+30"]

1. d4 {[%emt 0:00:00]} Nf6 {[%emt 0:00:40]} 2. c4 {[%emt 0:00:04]} g6 {[%emt 0:00:08]} 3. Nc3 {[%emt 0:00:33]} Bg7 {[%emt 0:00:09]} 4. e4 {[%emt 0:00:17]} d6 {[%emt 0:00:06]} 5. Nf3 {[%emt 0:00:18]} O-O {[%emt 0:00:10]} 6. Be2 {[%emt 0:00:04]} e5 {[%emt 0:00:13]} 7. O-O {[%emt 0:00:20]} Nc6 {[%emt 0:00:07]} 8. d5 {[%emt 0:00:10]} Ne7 {[%emt 0:00:05]} 9. Bg5 {[%emt 0:00:14]} h6 {[%emt 0:01:13]} 10. Bxf6 {[%emt 0:00:14]} Bxf6 {[%emt 0:00:11]} 11. b4 {[%emt 0:00:19]} Kg7 {[%emt 0:19:34]} 12. c5 {[%emt 0:07:28]} Ng8 {[%emt 0:03:48]} 13. Rc1 {[%emt 0:21:53]} Be7 {[%emt 0:02:19]} 14. cxd6 {[%emt 0:17:25]} Bxd6 {[%emt 0:01:43]} 15. Nb5 {[%emt 0:05:19]} Bd7 {[%emt 0:02:54]} 16. Nxd6 {[%emt 0:03:03]} cxd6 {[%emt 0:00:08]} 17. Nd2 {[%emt 0:00:13]} Rc8 {[%emt 0:06:20]} 18. Qb3 {[%emt 0:06:16]} Qg5 {[%emt 0:04:25]} 19. Qb2 {[%emt 0:05:35]} Rxc1 {[%emt 0:02:26]} 20. Rxc1 {[%emt 0:00:20]} Rc8 {[%emt 0:01:26]} 21. Rxc8 {[%emt 0:01:43]} Bxc8 {[%emt 0:00:05]} 22. Nc4 {[%emt 0:00:14]} Qd8 {[%emt 0:03:06]} 23. Qa3 {[%emt 0:11:01]} Nf6 {[%emt 0:02:01]} 24. Bd3 {[%emt 0:03:25]} b5 {[%emt 0:05:17]} 25. Qa5 {[%emt 0:01:48]} Qxa5 {[%emt 0:08:44]} 26. Nxa5 {[%emt 0:00:06]} a6 {[%emt 0:00:19]} 27. Bc2 {[%emt 0:00:18]} Ne8 {[%emt 0:02:03]} 28. f3 {[%emt 0:03:26]} Nc7 {[%emt 0:00:15]} 29. Kf2 {[%emt 0:00:18]} f5 {[%emt 0:01:28]} 30. g3 {[%emt 0:01:06]} fxe4 {[%emt 0:00:15]} 31. fxe4 {[%emt 0:00:39]} Kf6 {[%emt 0:00:23]} 32. Ke3 {[%emt 0:01:46]} Bd7 {[%emt 0:02:10]} 33. h4 {[%emt 0:04:28]} Bg4 {[%emt 0:03:36]} 34. a4 {[%emt 0:02:33]} Bd7 {[%emt 0:01:10]} 35. axb5 {[%emt 0:00:14]} axb5 {[%emt 0:00:17]} 36. Kd2 {[%emt 0:00:14]} Ke7 {[%emt 0:01:01]} 37. Bd3 {[%emt 0:00:23]} g5 {[%emt 0:09:02]} 38. Be2 {[%emt 0:01:06]} Kf6 {[%emt 0:02:46]} 39. Nb3 {[%emt 0:01:38]} Ke7 {[%emt 0:04:18]} 40. Na1 {[%emt 0:00:34]} Kf6 {[%emt 0:01:30]} 41. Nc2 {[%emt 0:00:14]} g4 {[%emt 0:00:45]} 42. Ne3 {[%emt 0:01:59]} h5 {[%emt 0:00:09]} 43. Nd1 {[%emt 0:00:42]} Ke7 {[%emt 0:00:21]} 44. Nc3 {[%emt 0:00:44]} Be8 {[%emt 0:00:29]} 45. Nd1 {[%emt 0:00:33]} Bd7 {[%emt 0:00:13]} 46. Nc3 {[%emt 0:00:37]} 1/2-1/2

[Event "40th IND-chT Open 2020"]
[Site "Ahmedabad"]
[Date "2020.02.12"]
[Round "8.12"]
[White "Rahul Srivatshav P"]
[Black "Das, Arghyadip"]
[Result "0-1"]
[ECO "E70"]
[WhiteElo "2474"]
[BlackElo "2458"]
[Annotator "ChessBase"]
[PlyCount "82"]
[EventDate "2020.02.05"]
[EventCountry "IND"]
[SourceTitle "playchess.com"]
[Source "ChessBase"]
[SourceQuality "1"]
[TimeControl "5400+30"]

1. c4 {[%emt 0:05:11]} g6 {[%emt 0:00:00]} 2. d4 {[%emt 0:00:25]} Bg7 {[%emt 0:00:00]} 3. Nf3 {[%emt 0:00:11]} Nf6 {[%emt 0:00:00]} 4. Nc3 {[%emt 0:00:05]} O-O {[%emt 0:00:03]} 5. e4 {[%emt 0:00:06]} c5 {[%emt 0:00:04]} 6. d5 {[%emt 0:00:23]} e6 {[%emt 0:00:05]} 7. Be3 {[%emt 0:10:26]} exd5 {[%emt 0:05:27]} 8. cxd5 {[%emt 0:01:16]} d6 {[%emt 0:00:22]} 9. Be2 {[%emt 0:00:23]} Bg4 {[%emt 0:05:42]} 10. Nd2 {[%emt 0:00:38]} Bxe2 {[%emt 0:00:05]} 11. Qxe2 {[%emt 0:00:02]} a6 {[%emt 0:00:17]} 12. a4 {[%emt 0:01:14]} Nbd7 {[%emt 0:00:05]} 13. O-O {[%emt 0:00:27]} Ne5 {[%emt 0:02:39]} 14. h3 {[%emt 0:06:01]} Re8 {[%emt 0:09:06]} 15. f4 {[%emt 0:07:49]} Ned7 {[%emt 0:00:09]} 16. Qd3 {[%emt 0:01:18]} Qc7 {[%emt 0:11:11]} 17. Rfe1 {[%emt 0:19:04]} Rac8 {[%emt 0:15:42]} 18. Nc4 {[%emt 0:03:10]} Nb6 {[%emt 0:01:30]} 19. a5 {[%emt 0:09:51]} Nxc4 {[%emt 0:01:43]} 20. Qxc4 {[%emt 0:00:04]} Re7 {[%emt 0:02:21]} 21. Bf2 {[%emt 0:03:04]} Nh5 {[%emt 0:06:13]} 22. g3 {[%emt 0:00:54]} Bd4 {[%emt 0:15:30]} 23. Kg2 {[%emt 0:00:25]} Bxf2 {[%emt 0:02:27]} 24. Kxf2 {[%emt 0:00:15]} Rce8 {[%emt 0:02:21]} 25. Kg2 {[%emt 0:04:06]} f6 {[%emt 0:01:00]} 26. Re3 {[%emt 0:04:17]} Kf8 {[%emt 0:18:58]} 27. Rf1 {[%emt 0:02:23]} Qxa5 {[%emt 0:00:00]} 28. g4 {[%emt 0:01:27]} b5 {[%emt 0:00:00]} 29. Qe2 {[%emt 0:00:09]} Ng7 {[%emt 0:00:00]} 30. e5 {[%emt 0:00:26]} f5 {[%emt 0:00:00]} 31. e6 {[%emt 0:00:31]} b4 {[%emt 0:00:00]} 32. Ne4 {[%emt 0:02:56]} Qb5 {[%emt 0:00:00]} 33. Qd1 {[%emt 0:03:16]} Rd8 {[%emt 0:00:39]} 34. b3 {[%emt 0:02:06]} Qb7 {[%emt 0:00:46]} 35. Qa1 {[%emt 0:02:59]} Qxd5 {[%emt 0:00:51]} 36. gxf5 {[%emt 0:02:38]} gxf5 {[%emt 0:00:05]} 37. Qf6+ {[%emt 0:05:02]} Ke8 {[%emt 0:00:25]} 38. Rfe1 {[%emt 0:01:18]} Nxe6 {[%emt 0:01:13]} 39. Rd3 {[%emt 0:02:12]} Qxd3 {[%emt 0:00:37]} 40. Qxf5 {[%emt 0:00:06]} Rg7+ {[%emt 0:01:32]} 41. Kf2 {[%emt 0:00:08]} Qf3+ {[%emt 0:00:38]} 0-1

[Event "40th IND-chT Open 2020"]
[Site "Ahmedabad"]
[Date "2020.02.12"]
[Round "8.14"]
[White "Sahoo, Utkal Ranjan"]
[Black "Santu, Mondal"]
[Result "1-0"]
[ECO "A84"]
[WhiteElo "2336"]
[BlackElo "2093"]
[Annotator "ChessBase"]
[PlyCount "51"]
[EventDate "2020.02.05"]
[EventCountry "IND"]
[SourceTitle "playchess.com"]
[Source "ChessBase"]
[SourceQuality "1"]
[TimeControl "5400+30"]

1. d4 {[%emt 0:00:14]} e6 {[%emt 0:03:29]} 2. c4 {[%emt 0:01:12]} f5 {[%emt 0:00:14]} 3. g4 {[%emt 0:07:33]} fxg4 {[%emt 0:01:42]} 4. e4 {[%emt 0:00:26]} c5 {[%emt 0:01:55]} 5. d5 {[%emt 0:05:54]} d6 {[%emt 0:04:51]} 6. Nc3 {[%emt 0:01:15]} Nf6 {[%emt 0:00:33]} 7. h3 {[%emt 0:03:21]} exd5 {[%emt 0:07:16]} 8. cxd5 {[%emt 0:00:36]} a6 {[%emt 0:02:55]} 9. hxg4 {[%emt 0:01:22]} Bxg4 {[%emt 0:02:27]} 10. f3 {[%emt 0:00:51]} Bc8 {[%emt 0:01:00]} 11. Be3 {[%emt 0:08:42]} b5 {[%emt 0:10:25]} 12. Nh3 {[%emt 0:03:36]} Nbd7 {[%emt 0:05:31]} 13. a4 {[%emt 0:06:22]} b4 {[%emt 0:01:31]} 14. Ne2 {[%emt 0:00:33]} Ne5 {[%emt 0:03:18]} 15. Nef4 {[%emt 0:00:25]} Be7 {[%emt 0:08:14]} 16. Nd3 {[%emt 0:10:16]} Nxd3+ {[%emt 0:01:24]} 17. Qxd3 {[%emt 0:00:55]} Nh5 {[%emt 0:03:04]} 18. O-O-O {[%emt 0:04:55]} Ng3 {[%emt 0:02:03]} 19. Rh2 {[%emt 0:01:28]} Nxf1 {[%emt 0:00:18]} 20. Rxf1 {[%emt 0:00:30]} c4 {[%emt 0:01:38]} 21. Qc2 {[%emt 0:01:01]} b3 {[%emt 0:25:07]} 22. Qg2 {[%emt 0:02:21]} Bxh3 {[%emt 0:01:01]} 23. Qxh3 {[%emt 0:02:53]} Qd7 {[%emt 0:01:44]} 24. Bd4 {[%emt 0:00:19]} Qe6 {[%emt 0:10:20]} 25. Qg4 Qxg4 {[%emt 0:00:00]} 26. Rh3 {[%emt 0:00:31]} 1-0